[Event "*** SCC Grand Prix: Titled Tuesday Blitz"]
[Site "Chess.com"]
[Date "2020.06.23"]
[Round "9"]
[White "RobertoJBM"]
[Black "OK97"]
[Result "0-1"]
[WhiteElo "2672"]
[BlackElo "2832"]
[TimeControl "180+1"]
[EndTime "11:49:27 PDT"]
[Termination "OK97 won by checkmate"]

1. d4 {[%clk 0:02:55.6]} 1... d6 {[%clk 0:02:59.7]} 2. e4 {[%clk 0:02:55.2]}
2... Nf6 {[%clk 0:02:59.8]} 3. Nc3 {[%clk 0:02:55.1]} 3... g6 {[%clk 0:03:00.4]}
4. f3 {[%clk 0:02:53.3]} 4... Bg7 {[%clk 0:02:59.7]} 5. Be3 {[%clk 0:02:53.9]}
5... a6 {[%clk 0:02:59.6]} 6. Qd2 {[%clk 0:02:54.5]} 6... b5 {[%clk 0:02:59.7]}
7. a4 {[%clk 0:02:55]} 7... b4 {[%clk 0:02:58.6]} 8. Nd1 {[%clk 0:02:55.6]} 8...
a5 {[%clk 0:02:56.8]} 9. Nf2 {[%clk 0:02:54.5]} 9... Nbd7 {[%clk 0:02:52.3]} 10.
c3 {[%clk 0:02:54.4]} 10... O-O {[%clk 0:02:44.6]} 11. Bb5 {[%clk 0:02:49.5]}
11... c5 {[%clk 0:02:14.4]} 12. Ne2 {[%clk 0:02:45.6]} 12... Qc7 {[%clk
0:02:05.5]} 13. O-O {[%clk 0:02:44.8]} 13... Nb6 {[%clk 0:02:01.8]} 14. d5
{[%clk 0:02:39.2]} 14... e6 {[%clk 0:01:56.5]} 15. dxe6 {[%clk 0:02:34.3]} 15...
Bxe6 {[%clk 0:01:55.9]} 16. cxb4 {[%clk 0:02:34.1]} 16... axb4 {[%clk
0:01:54.4]} 17. Nf4 {[%clk 0:02:32.7]} 17... Bc4 {[%clk 0:01:49.1]} 18. Bxc4
{[%clk 0:02:11.7]} 18... Nxc4 {[%clk 0:01:50]} 19. Qe2 {[%clk 0:02:12]} 19...
Nxe3 {[%clk 0:01:43.5]} 20. Qxe3 {[%clk 0:02:12.9]} 20... Bh6 {[%clk 0:01:34.4]}
21. Nd5 {[%clk 0:02:11.8]} 21... Bxe3 {[%clk 0:01:25.9]} 22. Nxc7 {[%clk
0:02:11]} 22... Ra5 {[%clk 0:01:19.2]} 23. b3 {[%clk 0:02:03.3]} 23... Rc8
{[%clk 0:01:06.5]} 24. Nb5 {[%clk 0:02:02.1]} 24... d5 {[%clk 0:00:59.5]} 25.
exd5 {[%clk 0:01:49.5]} 25... Nxd5 {[%clk 0:00:58.8]} 26. Rfd1 {[%clk
0:01:49.3]} 26... Nc3 {[%clk 0:00:46.8]} 27. Nxc3 {[%clk 0:01:40.3]} 27... bxc3
{[%clk 0:00:47.7]} 28. Ra2 {[%clk 0:01:38.4]} 28... Rb8 {[%clk 0:00:44]} 29. Rb1
{[%clk 0:01:35.5]} 29... c4 {[%clk 0:00:38]} 30. Rc2 {[%clk 0:01:32.1]} 30...
Rxb3 {[%clk 0:00:28.4]} 31. Rxb3 {[%clk 0:01:30.6]} 31... cxb3 {[%clk
0:00:29.3]} 32. Rxc3 {[%clk 0:01:31.5]} 32... b2 {[%clk 0:00:27.5]} 33. Rb3
{[%clk 0:01:25.5]} 33... Rxa4 {[%clk 0:00:26.5]} 34. Kf1 {[%clk 0:01:24.6]}
34... Ra1+ {[%clk 0:00:21]} 35. Ke2 {[%clk 0:01:24.3]} 35... Bxf2 {[%clk
0:00:18.5]} 36. Rxb2 {[%clk 0:01:24.3]} 36... Bd4 {[%clk 0:00:18.5]} 37. Rd2
{[%clk 0:01:24.2]} 37... Bf6 {[%clk 0:00:18.4]} 38. f4 {[%clk 0:01:24.3]} 38...
h5 {[%clk 0:00:17.7]} 39. Kf3 {[%clk 0:01:24.3]} 39... Ra3+ {[%clk 0:00:17.2]}
40. Ke4 {[%clk 0:01:24.8]} 40... Kg7 {[%clk 0:00:17.8]} 41. g3 {[%clk
0:01:23.7]} 41... Ra4+ {[%clk 0:00:16.5]} 42. Kf3 {[%clk 0:01:23.8]} 42... Ra5
{[%clk 0:00:17.4]} 43. Rd3 {[%clk 0:01:23.9]} 43... g5 {[%clk 0:00:17.7]} 44.
fxg5 {[%clk 0:01:23.9]} 44... Bxg5 {[%clk 0:00:18.3]} 45. h3 {[%clk 0:01:24.5]}
45... Kg6 {[%clk 0:00:18.2]} 46. Ke4 {[%clk 0:01:24.7]} 46... Ra4+ {[%clk
0:00:18.2]} 47. Kf3 {[%clk 0:01:24.9]} 47... Ra6 {[%clk 0:00:19.1]} 48. Rd5
{[%clk 0:01:23.9]} 48... Re6 {[%clk 0:00:19.5]} 49. Rd3 {[%clk 0:01:22.5]} 49...
Bf6 {[%clk 0:00:20]} 50. Kf4 {[%clk 0:01:22.5]} 50... Re5 {[%clk 0:00:20.2]} 51.
g4 {[%clk 0:01:21.9]} 51... hxg4 {[%clk 0:00:20.4]} 52. hxg4 {[%clk 0:01:22.3]}
52... Re6 {[%clk 0:00:21.3]} 53. Rd5 {[%clk 0:01:22.4]} 53... Ra6 {[%clk
0:00:20.8]} 54. Rb5 {[%clk 0:01:19.8]} 54... Ra4+ {[%clk 0:00:21.1]} 55. Kf3
{[%clk 0:01:20.7]} 55... Bg5 {[%clk 0:00:19.9]} 56. Rf5 {[%clk 0:01:19]} 56...
f6 {[%clk 0:00:20.3]} 57. Rb5 {[%clk 0:01:18.7]} 57... Rd4 {[%clk 0:00:19.1]}
58. Ra5 {[%clk 0:01:17.9]} 58... Rd6 {[%clk 0:00:19.2]} 59. Rb5 {[%clk
0:01:17.8]} 59... Re6 {[%clk 0:00:19.6]} 60. Rb3 {[%clk 0:01:17.4]} 60... Kf7
{[%clk 0:00:20.1]} 61. Rb7+ {[%clk 0:01:17.4]} 61... Re7 {[%clk 0:00:20.7]} 62.
Rb3 {[%clk 0:01:18.3]} 62... Ke6 {[%clk 0:00:20.6]} 63. Ke4 {[%clk 0:01:17]}
63... Rd7 {[%clk 0:00:20]} 64. Rb6+ {[%clk 0:01:16.4]} 64... Rd6 {[%clk
0:00:20.4]} 65. Rb8 {[%clk 0:01:14.8]} 65... Ra6 {[%clk 0:00:20.5]} 66. Rb4
{[%clk 0:01:14.6]} 66... Ra5 {[%clk 0:00:19.4]} 67. Rb6+ {[%clk 0:01:14.5]}
67... Ke7 {[%clk 0:00:19.5]} 68. Rb4 {[%clk 0:01:15.4]} 68... Ra1 {[%clk
0:00:18.9]} 69. Kf5 {[%clk 0:01:15.5]} 69... Rf1+ {[%clk 0:00:18.6]} 70. Kg6
{[%clk 0:01:15.9]} 70... Ke6 {[%clk 0:00:19.1]} 71. Re4+ {[%clk 0:01:15.2]}
71... Kd5 {[%clk 0:00:18.9]} 72. Ra4 {[%clk 0:01:16.1]} 72... Ke5 {[%clk
0:00:18.4]} 73. Kh5 {[%clk 0:01:15]} 73... Rf4 {[%clk 0:00:17.5]} 74. Ra5+
{[%clk 0:01:14.8]} 74... Ke4 {[%clk 0:00:18]} 75. Ra3 {[%clk 0:01:12.9]} 75...
Rf3 {[%clk 0:00:16.6]} 76. Ra4+ {[%clk 0:01:12.6]} 76... Ke3 {[%clk 0:00:17.1]}
77. Kg6 {[%clk 0:01:11.2]} 77... Kf2 {[%clk 0:00:16.7]} 78. Kh5 {[%clk
0:01:09.3]} 78... Kg3 {[%clk 0:00:16.2]} 79. Ra1 {[%clk 0:01:09.3]} 79... Kg2
{[%clk 0:00:14.8]} 80. Ra2+ {[%clk 0:01:09.5]} 80... Rf2 {[%clk 0:00:14.6]} 81.
Ra3 {[%clk 0:01:09.9]} 81... Re2 {[%clk 0:00:14]} 82. Rb3 {[%clk 0:01:09.8]}
82... Kf2 {[%clk 0:00:14.4]} 83. Ra3 {[%clk 0:01:09]} 83... Re3 {[%clk
0:00:14.8]} 84. Ra1 {[%clk 0:01:08.2]} 84... Kf3 {[%clk 0:00:15.4]} 85. Ra2
{[%clk 0:01:02.1]} 85... Kf4 {[%clk 0:00:15.4]} 86. Ra4+ {[%clk 0:01:02.1]}
86... Re4 {[%clk 0:00:15.5]} 87. Ra3 {[%clk 0:01:02.5]} 87... Ke5 {[%clk
0:00:11.5]} 88. Ra5+ {[%clk 0:01:02.2]} 88... Ke6 {[%clk 0:00:11.7]} 89. Ra6+
{[%clk 0:01:02.2]} 89... Kf7 {[%clk 0:00:11.1]} 90. Ra7+ {[%clk 0:01:02.4]}
90... Re7 {[%clk 0:00:11.1]} 91. Ra6 {[%clk 0:01:03.3]} 91... Bf4 {[%clk
0:00:10.5]} 92. Ra4 {[%clk 0:01:02.6]} 92... Be5 {[%clk 0:00:10.7]} 93. g5
{[%clk 0:01:02.5]} 93... f5 {[%clk 0:00:10.6]} 94. Ra6 {[%clk 0:00:58.1]} 94...
f4 {[%clk 0:00:06.3]} 95. Kg4 {[%clk 0:00:58]} 95... Kg7 {[%clk 0:00:05.3]} 96.
Ra4 {[%clk 0:00:55.5]} 96... Bc7 {[%clk 0:00:05.1]} 97. Ra7 {[%clk 0:00:54.5]}
97... Rf7 {[%clk 0:00:05]} 98. Kf3 {[%clk 0:00:53.9]} 98... Kg6 {[%clk
0:00:05.1]} 99. Kg4 {[%clk 0:00:50.4]} 99... f3 {[%clk 0:00:04.9]} 100. Ra1
{[%clk 0:00:50.5]} 100... f2 {[%clk 0:00:04.8]} 101. Rf1 {[%clk 0:00:50.9]}
101... Bb6 {[%clk 0:00:05.2]} 102. Kh4 {[%clk 0:00:48.8]} 102... Rf4+ {[%clk
0:00:04.9]} 103. Kg3 {[%clk 0:00:48.2]} 103... Kxg5 {[%clk 0:00:05.4]} 104. Kg2
{[%clk 0:00:49.1]} 104... Rf5 {[%clk 0:00:05.9]} 105. Rb1 {[%clk 0:00:48.3]}
105... Bd4 {[%clk 0:00:05.3]} 106. Kf1 {[%clk 0:00:47.8]} 106... Rf4 {[%clk
0:00:05.5]} 107. Rb8 {[%clk 0:00:47.5]} 107... Kg4 {[%clk 0:00:05.7]} 108. Rb3
{[%clk 0:00:46.9]} 108... Kf5 {[%clk 0:00:04.6]} 109. Rb8 {[%clk 0:00:46]}
109... Rg4 {[%clk 0:00:04.2]} 110. Rf8+ {[%clk 0:00:44.1]} 110... Ke4 {[%clk
0:00:04.6]} 111. Ke2 {[%clk 0:00:43.8]} 111... Rg1 {[%clk 0:00:04.1]} 112. Re8+
{[%clk 0:00:44]} 112... Kd5 {[%clk 0:00:04.4]} 113. Rd8+ {[%clk 0:00:44]} 113...
Kc4 {[%clk 0:00:04.4]} 114. Rc8+ {[%clk 0:00:43.9]} 114... Bc5 {[%clk
0:00:04.9]} 115. Rxc5+ {[%clk 0:00:40.8]} 115... Kxc5 {[%clk 0:00:05.8]} 116.
Kxf2 {[%clk 0:00:41.7]} 116... Rg7 {[%clk 0:00:06.4]} 117. Ke3 {[%clk
0:00:42.6]} 117... Kd5 {[%clk 0:00:07.3]} 118. Kf4 {[%clk 0:00:42.9]} 118...
Rf7+ {[%clk 0:00:07.3]} 119. Ke3 {[%clk 0:00:42.7]} 119... Ke5 {[%clk
0:00:08.2]} 120. Kd3 {[%clk 0:00:43.6]} 120... Rf4 {[%clk 0:00:08.3]} 121. Ke2
{[%clk 0:00:44.5]} 121... Ke4 {[%clk 0:00:08.4]} 122. Kd2 {[%clk 0:00:45.4]}
122... Rf3 {[%clk 0:00:08.1]} 123. Ke2 {[%clk 0:00:45.5]} 123... Rh3 {[%clk
0:00:08.1]} 124. Ke1 {[%clk 0:00:45.4]} 124... Rh2 {[%clk 0:00:07.6]} 125. Kd1
{[%clk 0:00:46.3]} 125... Kd3 {[%clk 0:00:06.7]} 126. Ke1 {[%clk 0:00:47.2]}
126... Ke3 {[%clk 0:00:06.7]} 127. Kf1 {[%clk 0:00:48.1]} 127... Rf2+ {[%clk
0:00:06.2]} 128. Ke1 {[%clk 0:00:49]} 128... Rf3 {[%clk 0:00:04.9]} 129. Kd1
{[%clk 0:00:49.9]} 129... Kd3 {[%clk 0:00:04.4]} 130. Kc1 {[%clk 0:00:50.8]}
130... Kc3 {[%clk 0:00:04.4]} 131. Kd1 {[%clk 0:00:51.7]} 131... Re3 {[%clk
0:00:05]} 132. Kc1 {[%clk 0:00:51.9]} 132... Re1# {[%clk 0:00:05.4]} 0-1

[Event "*** SCC Grand Prix: Titled Tuesday Blitz"]
[Site "Chess.com"]
[Date "2020.06.23"]
[Round "10"]
[White "profofchess"]
[Black "Kavyev_Ruslan"]
[Result "1-0"]
[WhiteElo "2408"]
[BlackElo "2528"]
[TimeControl "180+1"]
[EndTime "11:51:43 PDT"]
[Termination "profofchess won by resignation"]

1. e4 {[%clk 0:03:00.9]} 1... c5 {[%clk 0:02:59.9]} 2. Nf3 {[%clk 0:03:00.7]}
2... d6 {[%clk 0:03:00.4]} 3. c3 {[%clk 0:03:00.4]} 3... Nf6 {[%clk 0:03:00.5]}
4. Bc4 {[%clk 0:03:00.7]} 4... e6 {[%clk 0:02:57.9]} 5. Qe2 {[%clk 0:03:00.3]}
5... Be7 {[%clk 0:02:57.9]} 6. Bb3 {[%clk 0:03:00.6]} 6... O-O {[%clk
0:02:57.6]} 7. O-O {[%clk 0:03:00.9]} 7... Nc6 {[%clk 0:02:56.6]} 8. d4 {[%clk
0:03:00.6]} 8... cxd4 {[%clk 0:02:53.3]} 9. cxd4 {[%clk 0:03:01.5]} 9... d5
{[%clk 0:02:51.9]} 10. e5 {[%clk 0:03:01.3]} 10... Ne4 {[%clk 0:02:51.9]} 11.
Nc3 {[%clk 0:03:01.9]} 11... Nxc3 {[%clk 0:02:51.2]} 12. bxc3 {[%clk 0:03:02.8]}
12... a5 {[%clk 0:02:50.9]} 13. Bc2 {[%clk 0:03:02.9]} 13... h6 {[%clk
0:02:49.8]} 14. Qd3 {[%clk 0:03:00]} 14... g6 {[%clk 0:02:45]} 15. Bxh6 {[%clk
0:02:59.2]} 15... Re8 {[%clk 0:02:45.9]} 16. Qe3 {[%clk 0:02:48.5]} 16... b5
{[%clk 0:02:44.3]} 17. Qf4 {[%clk 0:02:45.2]} 17... b4 {[%clk 0:02:44.2]} 18.
Qg4 {[%clk 0:02:45]} 18... Kh7 {[%clk 0:02:36.9]} 19. Ng5+ {[%clk 0:02:42.1]}
19... Bxg5 {[%clk 0:02:33.8]} 20. Bxg5 {[%clk 0:02:41.8]} 20... Qd7 {[%clk
0:02:34.2]} 21. Qh4+ {[%clk 0:02:37.7]} 21... Kg8 {[%clk 0:02:34.4]} 22. Bf6
{[%clk 0:02:38.6]} 1-0

[Event "*** SCC Grand Prix: Titled Tuesday Blitz"]
[Site "Chess.com"]
[Date "2020.06.23"]
[Round "10"]
[White "MoreChessJulia"]
[Black "HrvojeZagreb"]
[Result "0-1"]
[WhiteElo "1763"]
[BlackElo "2103"]
[TimeControl "180+1"]
[EndTime "11:52:37 PDT"]
[Termination "HrvojeZagreb won by resignation"]

1. d4 {[%clk 0:02:53.4]} 1... e6 {[%clk 0:02:55.9]} 2. c4 {[%clk 0:02:52.3]}
2... f5 {[%clk 0:02:55.9]} 3. Nf3 {[%clk 0:02:50.7]} 3... Nf6 {[%clk 0:02:56]}
4. g3 {[%clk 0:02:49.9]} 4... d6 {[%clk 0:02:55.9]} 5. Bg2 {[%clk 0:02:47]} 5...
Be7 {[%clk 0:02:56.5]} 6. O-O {[%clk 0:02:45.6]} 6... O-O {[%clk 0:02:56.6]} 7.
b3 {[%clk 0:02:45.5]} 7... Nc6 {[%clk 0:02:54.8]} 8. Bb2 {[%clk 0:02:45.4]} 8...
Qe8 {[%clk 0:02:55.1]} 9. Nbd2 {[%clk 0:02:45.1]} 9... Ne4 {[%clk 0:02:52.8]}
10. Nxe4 {[%clk 0:02:42.6]} 10... fxe4 {[%clk 0:02:53.7]} 11. Nd2 {[%clk
0:02:42.3]} 11... d5 {[%clk 0:02:54.3]} 12. e3 {[%clk 0:02:42.3]} 12... Nb4
{[%clk 0:02:49.7]} 13. Ba3 {[%clk 0:02:39.5]} 13... a5 {[%clk 0:02:46.1]} 14. f4
{[%clk 0:02:34.7]} 14... c6 {[%clk 0:02:31.1]} 15. h3 {[%clk 0:02:25]} 15... h5
{[%clk 0:02:25.8]} 16. Kh2 {[%clk 0:02:23.7]} 16... Bd7 {[%clk 0:02:18.7]} 17.
Rf2 {[%clk 0:02:19.2]} 17... Nd3 {[%clk 0:02:07.5]} 18. Rf1 {[%clk 0:02:18.9]}
18... Bxa3 {[%clk 0:02:06.5]} 0-1

[Event "*** SCC Grand Prix: Titled Tuesday Blitz"]
[Site "Chess.com"]
[Date "2020.06.23"]
[Round "10"]
[White "AGW2016"]
[Black "doctorcristian"]
[Result "0-1"]
[WhiteElo "2223"]
[BlackElo "2403"]
[TimeControl "180+1"]
[EndTime "11:54:07 PDT"]
[Termination "doctorcristian won by resignation"]

1. d4 {[%clk 0:03:00.9]} 1... d5 {[%clk 0:02:56.8]} 2. c4 {[%clk 0:02:47.7]}
2... dxc4 {[%clk 0:02:56.6]} 3. e4 {[%clk 0:02:47.3]} 3... Nf6 {[%clk 0:02:56]}
4. e5 {[%clk 0:02:42.4]} 4... Nd5 {[%clk 0:02:56.1]} 5. Bxc4 {[%clk 0:02:43]}
5... Bf5 {[%clk 0:02:55.8]} 6. Nc3 {[%clk 0:02:41.3]} 6... Nb4 {[%clk
0:02:49.4]} 7. g4 {[%clk 0:02:24.1]} 7... Bg6 {[%clk 0:02:40.2]} 8. f4 {[%clk
0:02:24.3]} 8... e6 {[%clk 0:02:36.2]} 9. Kf2 {[%clk 0:02:01.1]} 9... Bc2 {[%clk
0:02:18.4]} 10. Qd2 {[%clk 0:01:39.6]} 10... Qh4+ {[%clk 0:02:10.4]} 11. Kf3
{[%clk 0:01:30.8]} 11... h5 {[%clk 0:02:08.7]} 12. Qg2 {[%clk 0:01:19.4]} 12...
hxg4+ {[%clk 0:01:59.8]} 13. Qxg4 {[%clk 0:01:16.5]} 13... Qxg4+ {[%clk
0:01:54.2]} 14. Kxg4 {[%clk 0:01:08.4]} 14... Bf5+ {[%clk 0:01:53.9]} 15. Kg3
{[%clk 0:01:05.7]} 15... Nc2 {[%clk 0:01:53.8]} 16. Rb1 {[%clk 0:01:05.6]} 16...
Nxd4 {[%clk 0:01:50.3]} 17. Ra1 {[%clk 0:01:05.9]} 17... Be7 {[%clk 0:01:46.8]}
18. Be3 {[%clk 0:01:05.9]} 18... Bh4+ {[%clk 0:01:46.3]} 19. Kg2 {[%clk
0:01:04.1]} 19... Nc2 {[%clk 0:01:46.3]} 20. Nf3 {[%clk 0:01:03]} 20... Nxe3+
{[%clk 0:01:46]} 21. Kg1 {[%clk 0:01:01.6]} 0-1

[Event "*** SCC Grand Prix: Titled Tuesday Blitz"]
[Site "Chess.com"]
[Date "2020.06.23"]
[Round "10"]
[White "Tsyhanchuk_Stanislav"]
[Black "OhanyanEminChess"]
[Result "0-1"]
[WhiteElo "2385"]
[BlackElo "2535"]
[TimeControl "180+1"]
[EndTime "11:54:12 PDT"]
[Termination "OhanyanEminChess won by resignation"]

1. e4 {[%clk 0:03:00.9]} 1... e5 {[%clk 0:02:57.7]} 2. Nf3 {[%clk 0:02:56.7]}
2... Nc6 {[%clk 0:02:55.4]} 3. Bb5 {[%clk 0:02:57.1]} 3... f5 {[%clk 0:02:53.9]}
4. d3 {[%clk 0:02:56.4]} 4... fxe4 {[%clk 0:02:53.3]} 5. dxe4 {[%clk 0:02:57.3]}
5... Nf6 {[%clk 0:02:53.8]} 6. Nc3 {[%clk 0:02:57.3]} 6... Bb4 {[%clk
0:02:52.9]} 7. O-O {[%clk 0:02:57]} 7... Bxc3 {[%clk 0:02:52.7]} 8. bxc3 {[%clk
0:02:57.9]} 8... d6 {[%clk 0:02:52.6]} 9. Bc4 {[%clk 0:02:55.7]} 9... Qe7 {[%clk
0:02:52.1]} 10. Bg5 {[%clk 0:02:53.8]} 10... Be6 {[%clk 0:02:51.3]} 11. Qe2
{[%clk 0:02:53.5]} 11... O-O {[%clk 0:02:49.1]} 12. Rab1 {[%clk 0:02:52.2]}
12... Rab8 {[%clk 0:02:47.9]} 13. Bd5 {[%clk 0:02:48.6]} 13... Nd8 {[%clk
0:02:46.4]} 14. Rfd1 {[%clk 0:02:41]} 14... b6 {[%clk 0:02:41.6]} 15. a4 {[%clk
0:02:35.3]} 15... a5 {[%clk 0:02:41.1]} 16. c4 {[%clk 0:02:33.3]} 16... Bxd5
{[%clk 0:02:33.5]} 17. cxd5 {[%clk 0:02:32.1]} 17... Nb7 {[%clk 0:02:33.4]} 18.
Ne1 {[%clk 0:02:23]} 18... Nc5 {[%clk 0:02:30.3]} 19. Qc4 {[%clk 0:02:13.8]}
19... Qd7 {[%clk 0:02:08.5]} 20. Be3 {[%clk 0:01:58.6]} 20... Ncxe4 {[%clk
0:01:58.6]} 21. Nd3 {[%clk 0:01:56.1]} 21... Nc5 {[%clk 0:01:52.4]} 22. Nxc5
{[%clk 0:01:52.3]} 22... bxc5 {[%clk 0:01:53.3]} 23. Rb3 {[%clk 0:01:46.8]}
23... Rb4 {[%clk 0:01:49.5]} 24. Qa6 {[%clk 0:01:29.3]} 24... Qxa4 {[%clk
0:01:38]} 0-1

[Event "*** SCC Grand Prix: Titled Tuesday Blitz"]
[Site "Chess.com"]
[Date "2020.06.23"]
[Round "10"]
[White "czasnaszachy"]
[Black "Djager97"]
[Result "0-1"]
[WhiteElo "2243"]
[BlackElo "2445"]
[TimeControl "180+1"]
[EndTime "11:54:15 PDT"]
[Termination "Djager97 won by resignation"]

1. d4 {[%clk 0:02:51.4]} 1... d5 {[%clk 0:02:59.5]} 2. c4 {[%clk 0:02:51.5]}
2... e6 {[%clk 0:02:59.9]} 3. Nc3 {[%clk 0:02:51.5]} 3... c6 {[%clk 0:03:00.3]}
4. e3 {[%clk 0:02:50.7]} 4... Nf6 {[%clk 0:03:00.2]} 5. Nf3 {[%clk 0:02:50.3]}
5... Nbd7 {[%clk 0:03:00.6]} 6. Be2 {[%clk 0:02:45.6]} 6... Bd6 {[%clk
0:02:58.9]} 7. O-O {[%clk 0:02:45.4]} 7... O-O {[%clk 0:02:58.5]} 8. b3 {[%clk
0:02:44.1]} 8... b6 {[%clk 0:02:58.2]} 9. Bb2 {[%clk 0:02:44.7]} 9... Bb7 {[%clk
0:02:58.8]} 10. Rc1 {[%clk 0:02:39.7]} 10... Rc8 {[%clk 0:02:55.7]} 11. Na4
{[%clk 0:02:29.6]} 11... Qe7 {[%clk 0:02:54.3]} 12. c5 {[%clk 0:02:18.6]} 12...
bxc5 {[%clk 0:02:31.7]} 13. dxc5 {[%clk 0:02:02.4]} 13... Nxc5 {[%clk
0:02:30.9]} 14. Bxf6 {[%clk 0:01:51.2]} 14... gxf6 {[%clk 0:02:30.7]} 15. Nxc5
{[%clk 0:01:50.8]} 15... Bxc5 {[%clk 0:02:31.6]} 16. Bd3 {[%clk 0:01:46.3]}
16... f5 {[%clk 0:02:20.8]} 17. Ne5 {[%clk 0:01:45.7]} 17... Bd6 {[%clk
0:02:19.4]} 18. f4 {[%clk 0:01:44.9]} 18... c5 {[%clk 0:02:11.4]} 19. Rf3 {[%clk
0:01:44.8]} 19... Kh8 {[%clk 0:02:09.1]} 20. Rh3 {[%clk 0:01:44.8]} 20... Bxe5
{[%clk 0:01:57.6]} 21. Qh5 {[%clk 0:01:39.8]} 21... f6 {[%clk 0:01:56.5]} 22.
fxe5 {[%clk 0:01:36]} 22... fxe5 {[%clk 0:01:52.6]} 23. g4 {[%clk 0:01:36]}
23... Rg8 {[%clk 0:01:52]} 24. Kh1 {[%clk 0:01:29]} 24... Rxg4 {[%clk
0:01:40.3]} 25. Bxf5 {[%clk 0:01:20.7]} 25... exf5 {[%clk 0:01:36.6]} 26. Qxf5
{[%clk 0:01:21.1]} 26... d4+ {[%clk 0:01:37]} 0-1

[Event "*** SCC Grand Prix: Titled Tuesday Blitz"]
[Site "Chess.com"]
[Date "2020.06.23"]
[Round "10"]
[White "MateSchmate"]
[Black "Rodalquilar"]
[Result "1-0"]
[WhiteElo "2491"]
[BlackElo "2616"]
[TimeControl "180+1"]
[EndTime "11:54:25 PDT"]
[Termination "MateSchmate won by checkmate"]

1. e4 {[%clk 0:03:00.9]} 1... e5 {[%clk 0:02:58.5]} 2. Nf3 {[%clk 0:03:01.1]}
2... Nc6 {[%clk 0:02:58.7]} 3. d4 {[%clk 0:03:01.7]} 3... exd4 {[%clk
0:02:58.8]} 4. Nxd4 {[%clk 0:03:02.6]} 4... Bb4+ {[%clk 0:02:57.1]} 5. c3 {[%clk
0:03:02.1]} 5... Bc5 {[%clk 0:02:57.7]} 6. Be3 {[%clk 0:03:02.6]} 6... Bb6
{[%clk 0:02:57.8]} 7. Nd2 {[%clk 0:03:02.7]} 7... Nf6 {[%clk 0:02:52.6]} 8. Bd3
{[%clk 0:03:02.5]} 8... O-O {[%clk 0:02:50.7]} 9. O-O {[%clk 0:03:02.1]} 9... d6
{[%clk 0:02:40.8]} 10. a4 {[%clk 0:02:58.6]} 10... Ng4 {[%clk 0:02:36.3]} 11.
Nxc6 {[%clk 0:02:58.1]} 11... bxc6 {[%clk 0:02:27.4]} 12. Bxb6 {[%clk
0:02:57.4]} 12... axb6 {[%clk 0:02:28.3]} 13. Be2 {[%clk 0:02:55.5]} 13... Qg5
{[%clk 0:02:15.9]} 14. f4 {[%clk 0:02:43.1]} 14... Qh4 {[%clk 0:02:11.5]} 15.
Bxg4 {[%clk 0:02:43.2]} 15... Bxg4 {[%clk 0:02:12.3]} 16. Qe1 {[%clk 0:02:43.5]}
16... Qxe1 {[%clk 0:02:10.6]} 17. Rfxe1 {[%clk 0:02:44.4]} 17... Bd7 {[%clk
0:02:08.5]} 18. b4 {[%clk 0:02:43.4]} 18... c5 {[%clk 0:02:03.5]} 19. a5 {[%clk
0:02:38.6]} 19... Bc6 {[%clk 0:01:44.6]} 20. axb6 {[%clk 0:02:30.8]} 20... cxb6
{[%clk 0:01:44.5]} 21. Rxa8 {[%clk 0:02:29.5]} 21... Rxa8 {[%clk 0:01:44]} 22.
Nc4 {[%clk 0:02:30.4]} 22... f5 {[%clk 0:01:09.5]} 23. exf5 {[%clk 0:01:56.9]}
23... Ra2 {[%clk 0:01:09.3]} 24. Nxd6 {[%clk 0:01:55.4]} 24... Rxg2+ {[%clk
0:01:08.9]} 25. Kf1 {[%clk 0:01:55.8]} 25... Rxh2 {[%clk 0:01:07.5]} 26. bxc5
{[%clk 0:01:54.9]} 26... bxc5 {[%clk 0:01:08.4]} 27. Re7 {[%clk 0:01:53.4]}
27... Rh4 {[%clk 0:01:04.6]} 28. Rc7 {[%clk 0:01:50]} 28... Rxf4+ {[%clk
0:01:04.8]} 29. Ke2 {[%clk 0:01:46.8]} 29... Ba4 {[%clk 0:01:04.2]} 30. Rc8+
{[%clk 0:01:45.6]} 30... Be8 {[%clk 0:01:02.4]} 31. Rxe8# {[%clk 0:01:45.6]} 1-0

[Event "*** SCC Grand Prix: Titled Tuesday Blitz"]
[Site "Chess.com"]
[Date "2020.06.23"]
[Round "10"]
[White "BikingBrian"]
[Black "elohunter1999"]
[Result "0-1"]
[WhiteElo "2255"]
[BlackElo "2440"]
[TimeControl "180+1"]
[EndTime "11:54:28 PDT"]
[Termination "elohunter1999 won by resignation"]

1. d4 {[%clk 0:03:00.9]} 1... Nf6 {[%clk 0:02:57.9]} 2. Bg5 {[%clk 0:03:00.9]}
2... d5 {[%clk 0:02:55.8]} 3. Nd2 {[%clk 0:03:00.1]} 3... c5 {[%clk 0:02:55.7]}
4. Bxf6 {[%clk 0:02:58]} 4... gxf6 {[%clk 0:02:55.5]} 5. dxc5 {[%clk 0:02:58.4]}
5... Nc6 {[%clk 0:02:53.5]} 6. e4 {[%clk 0:02:52.8]} 6... d4 {[%clk 0:02:50.3]}
7. Bc4 {[%clk 0:02:39]} 7... e5 {[%clk 0:02:49]} 8. Qh5 {[%clk 0:02:36.2]} 8...
Qc7 {[%clk 0:02:47.6]} 9. Ngf3 {[%clk 0:02:10.9]} 9... Bxc5 {[%clk 0:02:46.9]}
10. Qh6 {[%clk 0:01:59.6]} 10... Qe7 {[%clk 0:02:38.5]} 11. Qg7 {[%clk
0:01:59.2]} 11... Rf8 {[%clk 0:02:33]} 12. O-O-O {[%clk 0:01:49.3]} 12... Bd7
{[%clk 0:02:33.2]} 13. Nb3 {[%clk 0:01:45.1]} 13... Bb6 {[%clk 0:02:28.3]} 14.
Nh4 {[%clk 0:01:22.1]} 14... O-O-O {[%clk 0:02:21.8]} 15. Nf5 {[%clk 0:01:22]}
15... Bxf5 {[%clk 0:02:21.5]} 16. exf5 {[%clk 0:01:22.9]} 16... Rg8 {[%clk
0:02:15.7]} 17. Qxf7 {[%clk 0:01:18.6]} 17... Qxf7 {[%clk 0:02:16.2]} 18. Bxf7
{[%clk 0:01:18.5]} 18... Rxg2 {[%clk 0:02:17.1]} 19. Rdg1 {[%clk 0:01:09.9]}
19... Rxf2 {[%clk 0:02:10.9]} 20. Rg7 {[%clk 0:01:08.7]} 20... Nb4 {[%clk
0:02:02.8]} 21. c3 {[%clk 0:00:31.6]} 21... dxc3 {[%clk 0:02:00.9]} 22. bxc3
{[%clk 0:00:32.5]} 22... Nxa2+ {[%clk 0:02:00.5]} 23. Kb1 {[%clk 0:00:31.6]}
23... Nxc3+ {[%clk 0:02:01.2]} 24. Kc1 {[%clk 0:00:30.1]} 24... Be3+ {[%clk
0:02:01.6]} 0-1